Cogmind - Beta 13 @@@ ROGUE MODE // 2024.04.07 @ 09:23:02 Player: nowtakenusername Result: Self-destructed Performance ------------- Evolutions (4) 2000 Regions Visited (12) 2400 Robots Destroyed (118) 590 Value Destroyed (3664) 3664 Prototype IDs (18) 360 Alien Tech Used (0) 0 Bonus (124) 124 TOTAL SCORE: 9138 Bonus ------- Follower Combat Kills 253 Friendly Fire -129 Cogmind --------- Core Integrity 756/850 Matter 127/300 Energy 315/315 System Corruption 0% Temperature Warm (183) Movement Flying (530) Ox6 Location -6/Factory Parts ------- > --- POWER (1) -------- Neutrino Core > --- PROPULSION (5) --- Armored Leg Gravmag System Xenon Bombardment Thruster > --- UTILITY (6) ------ Small Storage Unit Medium Reactive Plating > --- WEAPON (3) ------- (None) > --- INVENTORY (8) ---- Improved Heat Sink Hardlight Generator Peak State ------------ > --- POWER ------------ Heavy Deuterium Engine > --- PROPULSION ------- Advanced Treads Medium Treads Medium Treads > --- UTILITY ---------- Large Storage Unit Improved Sensor Array Improved Signal Interpreter Kinecellerator Hardened Medium Armor Plating Makeshift Hacking Suite > --- WEAPON ----------- High-powered Shotgun High-powered Shotgun Enhanced Autogun > --- INVENTORY -------- Deuterium Engine Improved Treads Advanced Treads Compact Battery Trap Scanner Hardened Medium Armor Plating Hardened Medium Armor Plating System Shield Drone Bay Drone Bay Drone Bay High-powered Shotgun Assault Cannon Advanced EMP Blaster Makeshift Hammer [Rating: 49] Favorites ----------- Power Ion Engine Engine Ion Engine Power Core Nuclear Core Propulsion Light Treads Treads Light Treads Leg Aluminum Leg Wheel Armored Wheel Hover Unit Gravmag System Flight Unit Xenon Bombardment Thruster Utility Large Storage Unit Device Improved Sensor Array Storage Large Storage Unit Processor Improved Signal Interpreter Hackware Makeshift Hacking Suite Protection Hardened Medium Armor Plating Weapon High-powered Shotgun Energy Gun Particle Gun Energy Cannon Ion Cannon Ballistic Gun High-powered Shotgun Ballistic Cannon Advanced Assault Cannon Launcher Rocket Launcher Impact Weapon Makeshift Hammer Slashing Weapon Great Axe Build | -11 -10 -10 -10 -9 -8 -8 -7 -7 -7 -7 -7 -6 ------- Run | Yrd Mat Min Exi Min Mat Sto Fac Was Fac Low Low Fac Slots Evolved 8 | . . . . . 4 . 2 . . . . 2 Power . | . . . . . . . . . . . . . Propulsion 3 | . . . . . . . 1 . . . . 2 Utility 4 | . . . . . 3 . 1 . . . . . Weapon 1 | . . . . . 1 . . . . . . . Parts Attached 159 | 6 3 4 . 5 30 43 12 2 30 6 12 6 Power 21 | 1 . 2 . . 6 5 1 . 3 1 1 1 Engine 15 | 1 . 2 . . 5 3 1 . 3 . . . Core 6 | . . . . . 1 2 . . . 1 1 1 Reactor . | . . . . . . . . . . . . . Propulsion 35 | 2 . . . 3 4 8 4 . 8 2 3 1 Treads 19 | 2 . . . . 4 7 4 . 2 . . . Leg 2 | . . . . 1 . . . . . . . 1 Wheel 7 | . . . . 2 . . . . 5 . . . Hover 3 | . . . . . . 1 . . 1 . 1 . Flight 4 | . . . . . . . . . . 2 2 . Utility 53 | 1 3 . . . 11 9 6 1 13 2 5 2 Device 22 | . 1 . . . 5 2 5 . 6 1 2 . Storage 5 | 1 1 . . . . . 1 . 1 1 . . Processor 3 | . 1 . . . 1 . . . 1 . . . Hackware 2 | . . . . . . 1 . . 1 . . . Protection 21 | . . . . . 5 6 . 1 4 . 3 2 Artifact . | . . . . . . . . . . . . . Weapon 50 | 2 . 2 . 2 9 21 1 1 6 1 3 2 Energy Gun 7 | . . 2 . 1 1 3 . . . . . . Energy Cannon 2 | . . . . . . . . . 2 . . . Ballistic Gun 27 | 2 . . . 1 6 13 1 . 3 . . 1 Ballistic Cannon 4 | . . . . . . . . . 1 1 1 1 Launcher 2 | . . . . . 1 1 . . . . . . Special Weapon . | . . . . . . . . . . . . . Impact Weapon 6 | . . . . . 1 4 . 1 . . . . Slashing Weapon 2 | . . . . . . . . . . . 2 . Piercing Weapon . | . . . . . . . . . . . . . Special Melee Weapon . | . . . . . . . . . . . . . Unidentified Prototypes 10 | . . . . . 2 7 1 . . . . . Parts Lost 46 | . . 1 . 3 5 8 . 8 7 7 2 5 Power 5 | . . 1 . . . 2 . . 1 1 . . Propulsion 12 | . . . . 2 1 1 . 1 2 3 1 1 Utility 16 | . . . . . 2 3 . 4 3 2 . 2 Weapon 13 | . . . . 1 2 2 . 3 1 1 1 2 Highest Loss Streak 8 | . . 1 . 2 3 4 . 8 2 7 2 5 To Critical Strikes 1 | . . . . . . . . 1 . . . . Average Slot Usage (%) 91 | . 91 99 100 95 96 98 99 53 90 39 50 36 Engine 8 | . 14 13 14 14 5 5 7 3 6 2 . . Core 1 | . . . . . 3 3 . . . . 2 . Treads 17 | . 28 28 28 15 13 17 23 11 4 1 . . Wheel 2 | . . . . 7 2 . . . 16 4 . . Device 8 | . 2 . . . 17 9 14 7 16 9 8 6 Storage 9 | . 14 14 14 14 9 9 7 3 6 3 7 6 Processor 7 | . 3 14 14 14 9 9 7 4 . . . . Hackware 3 | . . . . . . 7 7 4 6 1 . . Protection 5 | . . . . . 6 9 7 3 8 1 5 . Energy Gun 3 | . . 12 14 14 2 . . . . . . . Ballistic Gun 17 | . 28 15 14 10 19 22 22 7 10 . . 1 Impact Weapon 1 | . . . . . 1 4 . 3 . . . . Naked Turns 58 | . . . . . . . . 38 20 . . . Heaviest Build 64 | 13 30 30 30 30 49 48 53 53 61 56 64 14 Greatest Support 78 | 40 40 40 40 40 40 45 78 78 36 22 19 14 Greatest Overweight (x) 9 | . . . . 9 3 1 . . 4 2 7 . Average Overweight (x) . | . . . . 1 . . . . 1 . . . Largest Inventory Capacity 15 | 8 15 15 15 15 15 15 15 15 15 15 8 8 Average Capacity 13 | 7 14 15 15 15 15 15 15 10 14 8 8 8 Most Carried 15 | 6 15 15 15 15 15 15 15 15 11 11 8 6 Average Carried 12 | 5 12 14 14 14 14 14 14 10 7 6 4 5 Final Capacity 15 | 8 15 15 15 15 15 15 15 5 15 8 8 8 Final Carried 15 | 6 15 15 15 15 15 15 15 5 11 8 6 2 Class Distribution -------------------- 49% | Mutant 16% | Scavenger-Mutant 13% | Scavenger-Skirmisher 8% | Skirmisher 4% | Tank Dominant Class ---------------- Mutant | -10/Materials Mutant | -10/Mines Mutant | -10/Exiles Mutant | -9/Mines Scavenger-Skirmisher | -8/Materials Scavenger-Mutant | -8/Storage Skirmisher | -7/Factory Scavenger-Mutant | -7/Waste Tank | -7/Factory Mutant | -7/Lower Caves Mutant | -7/Lower Caves Mutant | -6/Factory Resources | -11 -10 -10 -10 -9 -8 -8 -7 -7 -7 -7 -7 -6 ----------- Run | Yrd Mat Min Exi Min Mat Sto Fac Was Fac Low Low Fac Matter Collected 4197 | 194 175 206 . 58 478 1596 370 . 843 139 138 . Remotely 561 | . . . . . 221 181 . . 159 . . . Salvage Created 4459 | . 175 238 . 237 444 2053 490 . 744 . 40 38 Parts 219 | . 18 14 . 16 30 91 22 . 24 . 4 . Haulers Intercepted 7 | . . . . . . 6 . . 1 . . . Recyclers Shooed 5 | . 1 1 . . . . . . 3 . . . Parts Field Recycled . | . . . . . . . . . . . . . Retrieved Matter . | . . . . . . . . . . . . . Parts Self-Destructed 7 | . . . . . . . . . . 1 6 . Prevented . | . . . . . . . . . . . . . Kills | -11 -10 -10 -10 -9 -8 -8 -7 -7 -7 -7 -7 -6 ------- Run | Yrd Mat Min Exi Min Mat Sto Fac Was Fac Low Low Fac Combat Hostiles Destroyed 79 | . 9 4 . 3 7 30 9 . 13 . 3 1 Melee 1 | . . . . . . 1 . . . . . . Guns 68 | . 9 4 . 3 6 29 9 . 7 . . 1 Cannons 9 | . . . . . . . . . 6 . 3 . AOE 1 | . . . . . 1 . . . . . . . Classes Destroyed 13 | . 2 2 . 4 2 1 2 . . . . . Worker 7 | . . . . 1 1 4 . . 1 . . . Builder 2 | . . . . 1 . . . . 1 . . . Hauler 7 | . . . . . . 6 . . 1 . . . Recycler 16 | . . 1 . 2 2 6 1 . 4 . . . Watcher 7 | . 2 . . . 3 2 . . . . . . Swarmer 12 | . 9 . . . . . . . . . 3 . Grunt 35 | . . 4 . 1 2 15 4 . 9 . . . Duelist 3 | . . . . . . . 1 . 1 . . 1 Sentry 21 | . . . . . 4 14 2 . 1 . . . Demolisher 1 | . . . . 1 . . . . . . . . Hunter 3 | . . . . . 1 1 . . 1 . . . Programmer 3 | . . . . . . . 2 . 1 . . . Assembled 1 | . . . . 1 . . . . . . . . Thug 1 | . . . . 1 . . . . . . . . Best Kill Streak 6 | . 6 3 . 2 6 6 3 . 4 . 2 1 Combat Bots Only 6 | . 6 2 . 1 4 3 3 . 3 . 2 1 Max Kills in Single Turn 3 | . 2 1 . 2 1 3 1 . 2 . 1 1 Gunslinging 1 | . 1 . . . . . . . . . . . Exploded 1 | . . . . . 1 . . . . . . . Melee 1 | . . . . . . 1 . . . . . . Uniques/NPCs Destroyed . | . . . . . . . . . . . . . Combat | -11 -10 -10 -10 -9 -8 -8 -7 -7 -7 -7 -7 -6 -------- Run | Yrd Mat Min Exi Min Mat Sto Fac Was Fac Low Low Fac Hostile Shots Fired 648 | . 37 24 . 12 56 169 69 5 141 41 56 38 Missed 178 | . 7 5 . 2 13 35 24 1 36 14 31 10 Damage Taken 7618 | . 243 257 . 189 695 2027 438 483 1982 439 273 592 Core 1145 | . 17 70 . 58 59 161 9 131 457 31 58 94 Absorbed by Shields 159 | . . . . . . . 51 . 64 . 44 . Ignored by Resistances 55 | . . . . . . . . . . . 55 . Regen/Repaired (Parts) 599 | . . . . . 90 509 . . . . . . Core Remaining (%) 51 | 100 . . . 42 . 60 . . . . 2 . Volleys Fired 337 | . 40 15 . 14 31 107 21 2 84 2 15 6 Largest 3 | . 2 2 . 2 3 3 3 2 3 3 1 2 Hottest 156 | . 40 85 . 85 121 75 75 50 133 156 48 73 Shots Fired 733 | . 80 30 . 19 66 282 61 4 162 5 14 10 Gun 616 | . 80 30 . 19 59 282 61 4 75 . . 6 Cannon 110 | . . . . . . . . . 87 5 14 4 Launcher 7 | . . . . . 7 . . . . . . . Special . | . . . . . . . . . . . . . Kinetic 625 | . 80 24 . 5 37 282 61 4 105 3 14 10 Thermal 101 | . . 6 . 14 22 . . . 57 2 . . Explosive 7 | . . . . . 7 . . . . . . . Electromagnetic . | . . . . . . . . . . . . . Robot Hit Streak 32 | . 6 6 . 7 11 24 11 13 32 2 4 6 Robot Miss Streak 9 | . 6 5 . 7 5 9 5 . 5 4 2 2 Penetration Max . | . . . . . . . . . . . . . Secondary Targets 12 | . 1 1 . . 2 7 1 . . . . . Max Gunslinging Chain 1 | . 1 1 . . 1 1 1 . . . . . Shots Hit Robots 502 | . 41 17 . 16 43 207 42 4 112 2 10 8 Core Hits 276 | . 17 13 . 21 48 99 29 . 40 1 3 5 Critical Kills . | . . . . . . . . . . . . . Critical Parts Destroyed 1 | . . . . . 1 . . . . . . . Critical Strikes 2 | . . . . . 1 . . . 1 . . . Destroy 1 | . . . . . 1 . . . . . . . Blast 1 | . . . . . . . . . 1 . . . Melee Attacks 18 | . . . . . . 15 . 2 . . 1 . Impact 17 | . . . . . . 15 . 2 . . . . Slashing 1 | . . . . . . . . . . . 1 . Piercing . | . . . . . . . . . . . . . Sneak Attacks 2 | . . . . . . 2 . . . . . . Combat Hostiles . | . . . . . . . . . . . . . Follow-up Attacks . | . . . . . . . . . . . . . Damage Inflicted 10339 | . 477 259 . 219 953 4222 995 103 2636 53 252 170 Guns 7692 | . 472 227 . 191 654 3753 961 103 1239 . . 92 Cannons 1696 | . . . . . . . . . 1355 53 210 78 Explosions 297 | . . . . . 297 . . . . . . . Melee 498 | . . . . . . 456 . . . . 42 . Ramming 156 | . 5 32 . 28 2 13 34 . 42 . . . Kinetic 8026 | . 472 178 . 34 382 3753 961 103 1734 29 210 170 Thermal 1362 | . . 49 . 157 272 . . . 860 24 . . Explosive 297 | . . . . . 297 . . . . . . . Electromagnetic . | . . . . . . . . . . . . . Impact 456 | . . . . . . 456 . . . . . . Slashing 42 | . . . . . . . . . . . 42 . Piercing . | . . . . . . . . . . . . . Highest Corruption 32 | . . . . . 3 5 . 24 32 32 32 . Average Corruption 12 | . . . . . 2 4 . 13 24 32 32 . Corruption Purged . | . . . . . . . . . . . . . Corruption Blocked . | . . . . . . . . . . . . . Effects 198 | . . . . . 5 84 . 7 63 19 20 . Message Errors 44 | . . . . . 2 19 . 2 11 3 7 . Matter Fused 43 | . . . . . 3 15 . 1 14 5 5 . Heat Flow Errors 21 | . . . . . . 8 . . 9 2 2 . Energy Discharges 20 | . . . . . . 13 . . 3 3 1 . Parts Rejected 3 | . . . . . . 2 . . 1 . . . Parts Fused 1 | . . . . . . 1 . . . . . . Data Loss (minor) 25 | . . . . . . 8 . 1 10 3 3 . Data Loss (major) 9 | . . . . . . 7 . . 1 1 . . Misfires 7 | . . . . . . 4 . . 3 . . . Alerts 6 | . . . . . . 5 . . 1 . . . Misdirections 7 | . . . . . . . . 3 1 2 1 . Weapon Failures 12 | . . . . . . 2 . . 9 . 1 . Overload Shots . | . . . . . . . . . . . . . Overflow Damage 170 | . . . . . 5 113 . . 45 . 7 . Projectiles 52 | . . . . . . . . . 45 . 7 . Explosions 5 | . . . . . 5 . . . . . . . Melee 113 | . . . . . . 113 . . . . . . Knockbacks 20 | . . . . 1 . 1 . . 13 1 1 3 Impact 5 | . . . . 1 . 1 . . 3 . . . Kinetic 12 | . . . . . . . . . 7 1 1 3 Secondary 3 | . . . . . . . . . 3 . . . Self-Inflicted Damage 66 | . . . . 1 46 . . . 19 . . . Shots 1 | . . . . . 1 . . . . . . . Rammed 27 | . 2 5 . 4 2 4 5 . 5 . . . Targets Rammed 28 | . 2 5 . 4 2 4 6 . 5 . . . Kicked . | . . . . . . . . . . . . . Crushed 1 | . . . . . . . 1 . . . . . Highest Temperature 714 | . . 102 . 84 311 260 128 . 714 254 198 183 Average Temperature 79 | . . 45 . 29 99 52 43 . 118 105 91 104 Received Heat Transfer 2665 | . . 162 . 24 207 936 94 . 693 279 . 270 Effects 15 | . . . . . . . . . 15 . . . Shutdowns 3 | . . . . . . . . . 3 . . . Energy Bleed 3 | . . . . . . . . . 3 . . . Interference 5 | . . . . . . . . . 5 . . . Matter Decay 2 | . . . . . . . . . 2 . . . Damage (minor) 1 | . . . . . . . . . 1 . . . Damage (core) 1 | . . . . . . . . . 1 . . . Siege Activations . | . . . . . . . . . . . . . Robots Corrupted . | . . . . . . . . . . . . . Combat Hostiles . | . . . . . . . . . . . . . Parts Fried . | . . . . . . . . . . . . . Impact Corruptions 5 | . . . . . . 5 . . . . . . Robots Melted . | . . . . . . . . . . . . . Combat Hostiles . | . . . . . . . . . . . . . Parts Melted 3 | . . . . . 2 . . . 1 . . . Heat Transferred 2064 | . . 111 . 212 335 . . . 1369 37 . . Parts Sabotaged . | . . . . . . . . . . . . . Parts Stolen . | . . . . . . . . . . . . . Parts Stripped . | . . . . . . . . . . . . . Power Chain Reactions . | . . . . . . . . . . . . . Alert | -11 -10 -10 -10 -9 -8 -8 -7 -7 -7 -7 -7 -6 ------- Run | Yrd Mat Min Exi Min Mat Sto Fac Was Fac Low Low Fac Peak Influence 389 | . 207 218 . 38 264 389 179 15 290 . . 91 Initial 59 | . . 22 . . 13 1 59 . 10 . . 56 Average 68 | . 72 72 . 15 67 113 68 3 102 . . 63 Maximum Alert Level 1 | . 1 1 . . 1 1 . . 1 . . . Low Security (%) 93 | 100 96 94 . 100 94 85 100 100 89 . . 100 Level 1 6 | . 3 5 . . 5 14 . . 10 . . . Level 2 . | . . . . . . . . . . . . . Level 3 . | . . . . . . . . . . . . . Level 4 . | . . . . . . . . . . . . . Level 5 . | . . . . . . . . . . . . . High Security . | . . . . . . . . . . . . . Max Security . | . . . . . . . . . . . . . Squads Dispatched 19 | . . . . 1 3 6 4 . 5 . . . Investigation 4 | . . . . . 1 3 . . . . . . Extermination 4 | . . . . . . . 3 . 1 . . . Reinforcement 5 | . . . . 1 . . 1 . 3 . . . Assault . | . . . . . . . . . . . . . Garrison 6 | . . . . . 2 3 . . 1 . . . Intercept . | . . . . . . . . . . . . . Searches Triggered . | . . . . . . . . . . . . . Construction Impeded 2 | . . . . 1 . . . . 1 . . . Haulers Reinforced 1 | . . . . . . . . . 1 . . . Active Scanning Responses . | . . . . . . . . . . . . . Cargo Convoy Interrupts . | . . . . . . . . . . . . . Stealth | -11 -10 -10 -10 -9 -8 -8 -7 -7 -7 -7 -7 -6 --------- Run | Yrd Mat Min Exi Min Mat Sto Fac Was Fac Low Low Fac Distress Signals 8 | . 1 . . 2 1 3 1 . . . . . Communications Jammed . | . . . . . . . . . . . . . Distress Signals . | . . . . . . . . . . . . . Times Spotted 153 | . 16 8 . 5 19 41 15 5 24 4 10 6 Peak Tracking Total 5 | . 5 2 . 1 5 5 4 5 4 4 4 4 Tactical Retreats 12 | . 1 . . . . 1 . . 3 1 5 1 Traps | -11 -10 -10 -10 -9 -8 -8 -7 -7 -7 -7 -7 -6 ------- Run | Yrd Mat Min Exi Min Mat Sto Fac Was Fac Low Low Fac Traps Triggered 8 | . . . . . 2 . 1 . 5 . . . Indirectly . | . . . . . . . . . . . . . Trap Hack Attempts . | . . . . . . . . . . . . . Triggered . | . . . . . . . . . . . . . Disarmed . | . . . . . . . . . . . . . Reprogrammed . | . . . . . . . . . . . . . Reused . | . . . . . . . . . . . . . Traps Extracted . | . . . . . . . . . . . . . Installed . | . . . . . . . . . . . . . Triggered 1 | . . . . . . . . . . . 1 . Machines | -11 -10 -10 -10 -9 -8 -8 -7 -7 -7 -7 -7 -6 ---------- Run | Yrd Mat Min Exi Min Mat Sto Fac Was Fac Low Low Fac Machines Disabled 8 | . . 1 . . 1 4 . . 1 . . 1 Max in Single Turn 1 | . . . . . 1 1 . . 1 . . 1 Machines Repaired . | . . . . . . . . . . . . . Machines Dismantled . | . . . . . . . . . . . . . Machines Sabotaged . | . . . . . . . . . . . . . Overloaded Fab Kills . | . . . . . . . . . . . . . Hacking | -11 -10 -10 -10 -9 -8 -8 -7 -7 -7 -7 -7 -6 --------- Run | Yrd Mat Min Exi Min Mat Sto Fac Was Fac Low Low Fac Machines Accessed 36 | . 5 . 4 . 4 12 5 . 4 2 . . Terminals 19 | . 5 . . . 2 8 3 . 1 . . . Fabricators 2 | . . . . . . . . . 2 . . . Repair Stations 5 | . . . . . 1 2 1 . 1 . . . Recycling Units 1 | . . . . . . 1 . . . . . . Scanalyzers 1 | . . . . . . . 1 . . . . . Garrison Access 2 | . . . . . 1 1 . . . . . . Total Hacks 91 | . 13 . 4 . 12 37 14 . 9 2 . . Successful 46 | . 5 . 4 . 7 19 6 . 3 2 . . Failed 45 | . 8 . . . 5 18 8 . 6 . . . Catastrophic 2 | . 1 . . . . 1 . . . . . . Database Lockouts . | . . . . . . . . . . . . . Manual 15 | . 2 . . . . 8 5 . . . . . Terminals 52 | . 13 . . . 4 23 10 . 2 . . . Fabricators 5 | . . . . . . . . . 5 . . . Repair Stations 18 | . . . . . 5 10 1 . 2 . . . Recycling Units 2 | . . . . . . 2 . . . . . . Scanalyzers 3 | . . . . . . . 3 . . . . . Garrison Access 5 | . . . . . 3 2 . . . . . . Terminal Hacks 30 | . 5 . 4 . 3 9 5 . 2 2 . . Record 6 | . 1 . 4 . . 1 . . . . . . Part Schematic 4 | . . . . . . 3 1 . . . . . Robot Analysis 1 | . 1 . . . . . . . . . . . Prototype ID Bank 4 | . 1 . . . 1 1 1 . . . . . Open Door 3 | . . . . . . 1 . . . 2 . . Emergency Access Points 2 | . 1 . . . . . . . 1 . . . Alert Level 2 | . . . . . 1 . 1 . . . . . Unreport Threat 2 | . . . . . . 2 . . . . . . Locate Traps 3 | . . . . . . 1 1 . 1 . . . Hauler Manifests 2 | . 1 . . . 1 . . . . . . . Registered Components 1 | . . . . . . . 1 . . . . . Fabricator Hacks 1 | . . . . . . . . . 1 . . . Load Schematic 1 | . . . . . . . . . 1 . . . Repair Station Hacks 13 | . . . . . 4 9 . . . . . . Scan Component 7 | . . . . . 2 5 . . . . . . Repair 6 | . . . . . 2 4 . . . . . . Recycling Unit Hacks 1 | . . . . . . 1 . . . . . . Retrieve Components 1 | . . . . . . 1 . . . . . . Scanalyzer 1 | . . . . . . . 1 . . . . . Insert Component 1 | . . . . . . . 1 . . . . . Garrison Access Hacks . | . . . . . . . . . . . . . Unauthorized Hacks . | . . . . . . . . . . . . . Terminals . | . . . . . . . . . . . . . Fabricators . | . . . . . . . . . . . . . Repair Stations . | . . . . . . . . . . . . . Recycling Units . | . . . . . . . . . . . . . Scanalyzers . | . . . . . . . . . . . . . Garrison Access . | . . . . . . . . . . . . . Data Cores Recovered 1 | . . . . . . . 1 . . . . . Used 1 | . . . . . . . 1 . . . . . Hacking Detections 27 | . 5 . . . 3 10 5 . 4 . . . Full Trace Events 4 | . . . . . 1 3 . . . . . . Feedback Events . | . . . . . . . . . . . . . Feedback Blocked . | . . . . . . . . . . . . . Robot Schematics Acquired . | . . . . . . . . . . . . . Robots Built . | . . . . . . . . . . . . . Authchips . | . . . . . . . . . . . . . Time . | . . . . . . . . . . . . . Total Robot Build Rating . | . . . . . . . . . . . . . Part Schematics Acquired 4 | . . . . . . 3 1 . . . . . Parts Built . | . . . . . . . . . . . . . Authchips . | . . . . . . . . . . . . . Time . | . . . . . . . . . . . . . Total Part Build Rating . | . . . . . . . . . . . . . Parts Repaired 6 | . . . . . 2 4 . . . . . . Time 210 | . . . . . 58 152 . . . . . . Parts Recycled . | . . . . . . . . . . . . . Recycled Matter . | . . . . . . . . . . . . . Retrieved Matter . | . . . . . . . . . . . . . Retrieved Components 10 | . . . . . . 10 . . . . . . Parts Scanalyzed . | . . . . . . . . . . . . . Part Schematics Acquired . | . . . . . . . . . . . . . Parts Damaged . | . . . . . . . . . . . . . Bothacking | -11 -10 -10 -10 -9 -8 -8 -7 -7 -7 -7 -7 -6 ------------ Run | Yrd Mat Min Exi Min Mat Sto Fac Was Fac Low Low Fac Used RIF Installer . | . . . . . . . . . . . . . Robots Hacked . | . . . . . . . . . . . . . Non-combat . | . . . . . . . . . . . . . Combat . | . . . . . . . . . . . . . Robot Hacks Applied . | . . . . . . . . . . . . . Relay Couplers Released . | . . . . . . . . . . . . . Fabnet Peak Effective % . | . . . . . . . . . . . . . Robots Rewired . | . . . . . . . . . . . . . Allies Hacked . | . . . . . . . . . . . . . Hacks Repelled . | . . . . . . . . . . . . . Allies | -11 -10 -10 -10 -9 -8 -8 -7 -7 -7 -7 -7 -6 -------- Run | Yrd Mat Min Exi Min Mat Sto Fac Was Fac Low Low Fac Total Allies 13 | . . 1 . 2 . 10 . . . . . . Largest Group 10 | . . 1 . 2 1 10 9 . . . . . Highest-Rated Group 173 | . . 31 . 51 20 173 157 . . . . . Highest-Rated Ally 31 | . . 31 . 31 20 29 29 . . . . . Total Orders 4 | . . . . . . 1 . . . . 1 2 EXPLORE 3 | . . . . . . 1 . . . . 1 1 RETURN 1 | . . . . . . . . . . . . 1 Ally Attacks 72 | . . 28 . 5 . . 39 . . . . . Total Damage 877 | . . 256 . 96 . . 525 . . . . . Kills 10 | . . 4 . 1 . . 5 . . . . . Allies Corrupted . | . . . . . . . . . . . . . Allies Melted . | . . . . . . . . . . . . . Intel | -11 -10 -10 -10 -9 -8 -8 -7 -7 -7 -7 -7 -6 ------- Run | Yrd Mat Min Exi Min Mat Sto Fac Was Fac Low Low Fac Robot Analysis Total 1 | . 1 . . . . . . . . . . . Derelict Logs Recovered 5 | . . 2 . 2 . . . . . 1 . . Drone Launches 3 | . . . . . . 1 . . . . 1 1 Drone Recoveries 2 | . . . . . . . . . . . 1 1 Exploration | -11 -10 -10 -10 -9 -8 -8 -7 -7 -7 -7 -7 -6 ------------- Run | Yrd Mat Min Exi Min Mat Sto Fac Was Fac Low Low Fac Turns Passed 13908 | 1970 1064 652 1098 1055 1052 3537 1257 124 1098 386 424 191 Spaces Moved 7284 | 385 558 346 686 681 468 1369 699 126 627 731 392 216 Core 159 | 3 . . . 9 . . . 108 39 . . . Treads 4684 | 382 558 346 686 270 351 1369 699 18 5 . . . Legs 1 | . . . . 1 . . . . . . . . Wheels 1174 | . . . . 401 117 . . . 583 73 . . Hover 1 | . . . . . . . . . . . 1 . Flight 1265 | . . . . . . . . . . 658 391 216 Fastest Speed 34 | 50 160 160 160 110 110 152 150 50 50 34 34 44 Average Speed 138 | 159 160 160 160 136 170 193 153 65 110 46 63 44 Slowest Speed 500 | 160 160 160 160 500 320 240 155 155 225 115 480 54 Overloaded Moves . | . . . . . . . . . . . . . Propulsion Burnouts . | . . . . . . . . . . . . . Robots Hopped 3 | . . . . . . . . . . 1 1 1 Cave-ins Triggered 1 | . . . . . . . . 1 . . . . Exploration Rate (%) 57 | 55 68 83 92 83 25 93 14 74 16 85 56 8 Regions Visited 12 Branch Regions 6 Pre-discovered Areas 1 | . . 1 . . . . . . . . . . Known Exits Taken 6 | . 1 1 1 1 1 1 . . . . . . Unknown Exits Taken 4 | 1 . . . . . . . . 1 1 1 . Scrap Searched 8 | . . 1 . 2 . . . . . 3 2 . Spaces Dug 2 | . . . . . . . . 2 . . . . Terrain Destroyed 39 | . . . . . 27 . . 2 5 1 4 . Melee 2 | . . . . . . . . 2 . . . . Projectile 10 | . . . . . . . . . 5 1 4 . AOE 27 | . . . . . 27 . . . . . . . Terrain Rammed . | . . . . . . . . . . . . . Walls Destroyed . | . . . . . . . . . . . . . Machines Disabled . | . . . . . . . . . . . . . Actions | -11 -10 -10 -10 -9 -8 -8 -7 -7 -7 -7 -7 -6 --------- Run | Yrd Mat Min Exi Min Mat Sto Fac Was Fac Low Low Fac Total 10508 | 1740 658 416 687 788 667 2018 845 166 899 773 554 297 Wait 2471 | 1343 39 34 . 81 81 437 85 24 133 23 121 70 Move 7267 | 384 557 345 685 680 467 1368 699 125 626 728 389 214 Hop 3 | . . . . . . . . . . 1 1 1 Pick Up 91 | 7 11 5 1 2 24 14 7 . 13 3 4 . Fast Attach 71 | 5 3 2 . 1 13 19 6 1 16 3 . 2 Attach 49 | 1 . . . 2 4 10 2 . 12 2 12 4 Detach 27 | . 2 . . . 2 5 2 . 7 1 8 . Swap 39 | . . 2 . 2 13 14 4 1 2 1 . . Drop 107 | . 4 8 1 2 30 25 13 11 1 9 3 . Fire 337 | . 40 15 . 14 31 107 21 2 84 2 15 6 Melee 18 | . . . . . . 15 . 2 . . 1 . Ram 6 | . . . . 1 . . . . 5 . . . Kick . | . . . . . . . . . . . . . Crush 22 | . 2 5 . 3 2 4 6 . . . . . Escape Stasis . | . . . . . . . . . . . . . Rewire . | . . . . . . . . . . . . . Trap . | . . . . . . . . . . . . . Miscellaneous . | . . . . . . . . . . . . . Route ------- -11/Scrapyard -10/Materials (discovered 3 exits: *Mat x2 / *Min) -10/Mines (discovered 3 exits: *Mat x2 / *Exi) -10/Exiles (discovered 2 exits: *Min x2) -9/Mines (discovered 2 exits: *Mat x2) -8/Materials -8/Storage (discovered 2 exits: *Fac / *Rec) -7/Factory -7/Waste -7/Factory (discovered 2 exits: *Fac / *Low) -7/Lower Caves -7/Lower Caves -6/Factory History --------- Turn | Location | Event 4 | -11/Scrapyard | Discovered new exit (range 15) 1971 | -11/Scrapyard | Entered Materials 1972 | -10/Materials | Build established: Mutant 2583 | -10/Materials | Discovered new exit (range 14) 2803 | -10/Materials | Identified exit to Materials 2900 | -10/Materials | Discovered exit to Materials (range 4) 2997 | -10/Materials | Discovered new exit (range 7) 3010 | -10/Materials | Identified exit to Mines 3035 | -10/Materials | Entered Mines 3048 | -10/Mines | Discovered exit to Materials (range 5) 3149 | -10/Mines | Received a Mining Laser from a helpful Derelict 3152 | -10/Mines | Identified exit to Exiles 3276 | -10/Mines | Discovered exit to Materials (range 8) 3680 | -10/Mines | Deemed a non-threat by the Exiles lab entrance 3687 | -10/Mines | Entered Exiles 3687 | -10/Exiles | Found Exiles lab abandoned 4553 | -10/Exiles | Discovered new exit (range 14) 4575 | -10/Exiles | Identified exit to Mines 4764 | -10/Exiles | Discovered exit to Mines (range 15) 4785 | -10/Exiles | Entered Mines 4788 | -9/Mines | Assembled infested the area 4793 | -9/Mines | Assisted by a Guerilla fighting off Assembled 5023 | -9/Mines | Discovered new exit (range 10) 5039 | -9/Mines | Identified exit to Materials 5085 | -9/Mines | Discovered exit to Materials (range 13) 5446 | -9/Mines | Core integrity fell below 50% 5515 | -9/Mines | Learned Materials security intel 5529 | -9/Mines | Learned Materials garrison access intel 5542 | -9/Mines | Received a Rocket Launcher from a helpful Derelict 5754 | -9/Mines | Build established: Scavenger-Mutant 5840 | -9/Mines | Entered Materials 5840 | -8/Materials | Accompanied by 1 ally 5840 | -8/Materials | Evolved 4 slots: Utility x3, Weapon x1 5842 | -8/Materials | Loaded intel: 1 garrison access location 6004 | -8/Materials | Repaired Lgt. Armor Plating 6050 | -8/Materials | Garrison activated, responded to threat 6164 | -8/Materials | Garrison activated, responded to threat 6216 | -8/Materials | Lost 3 parts (1u2w) 6343 | -8/Materials | Discovered new exit (range 15) 6464 | -8/Materials | Identified exit to Storage 6553 | -8/Materials | Build established: Scavenger-Skirmisher 6821 | -8/Materials | Repaired Rocket Launcher 6892 | -8/Materials | Entered Storage 7014 | -8/Storage | Garrison activated, responded to threat 7142 | -8/Storage | Lost 4 parts (1p1n2u) 7829 | -8/Storage | Build established: Scavenger-Mutant 7878 | -8/Storage | Used back door to open Recycling access 7878 | -8/Storage | Discovered new exit (range 4) 8227 | -8/Storage | Build established: Scavenger-Skirmisher 8916 | -8/Storage | Repaired Hpw. Shotgun 8955 | -8/Storage | Repaired Hpw. Shotgun 9315 | -8/Storage | Build established: Scavenger-Mutant 9486 | -8/Storage | Identified exit to Recycling 9800 | -8/Storage | Discovered new exit (range 9) 9819 | -8/Storage | Identified exit to Factory 9993 | -8/Storage | Repaired Hrd. Medium Armor Plating 10033 | -8/Storage | Repaired Adv. Treads 10228 | -8/Storage | Assisted by bots powering up and referring to "LRC-V3" 10429 | -8/Storage | Entered Factory 10429 | -7/Factory | Accompanied by 9 allies 10429 | -7/Factory | Evolved 2 slots: Propulsion x1, Utility x1 10634 | -7/Factory | Lost 4 allies 11125 | -7/Factory | Build established: Skirmisher 11144 | -7/Factory | Lost 3 allies 11686 | -7/Factory | Sucked down chute 11686 | -7/Factory | Entered Waste 11701 | -7/Waste | EMP discharged 11707 | -7/Waste | Spotted C-40 Crusher 11733 | -7/Waste | Spotted C-40 Crusher 11747 | -7/Waste | Crushed by falling debris 11747 | -7/Waste | System corruption reached 10% 11747 | -7/Waste | Crushed by Compactor (1 part destroyed, 1 dropped) 11750 | -7/Waste | Crushed by Compactor (1 part destroyed, 2 dropped) 11753 | -7/Waste | Crushed by Compactor (1 part destroyed, 1 dropped) 11754 | -7/Waste | Spotted C-40 Crusher 11755 | -7/Waste | Spotted C-40 Crusher 11772 | -7/Waste | Crushed by Compactor (1 part destroyed, 1 dropped) 11782 | -7/Waste | Spotted C-40 Crusher 11782 | -7/Waste | Spotted C-40 Crusher 11801 | -7/Waste | EMP discharged 11803 | -7/Waste | Lost 8 parts (1n4u3w) 11805 | -7/Waste | Discovered new exit (range 12) 11810 | -7/Waste | Entered Factory 11827 | -7/Factory | Discovered new exit (range 15) 12415 | -7/Factory | Garrison activated, responded to threat 12500 | -7/Factory | Core integrity fell below 50% 12727 | -7/Factory | Build established: Tank 12768 | -7/Factory | Core integrity fell below 20% 12890 | -7/Factory | Discovered new exit (range 3) 12895 | -7/Factory | System corruption reached 30% 12908 | -7/Factory | Entered Lower Caves 13063 | -7/Lower Caves | Lost 7 parts (1p3n2u1w) 13136 | -7/Lower Caves | Learned 4 Factory zone layouts 13239 | -7/Lower Caves | Discovered new exit (range 12) 13294 | -7/Lower Caves | Entered another Lower Caves area 13329 | -7/Lower Caves | Build established: Mutant 13610 | -7/Lower Caves | Discovered new exit (range 9) 13718 | -7/Lower Caves | Entered Factory 13718 | -6/Factory | Evolved 2 slots: Propulsion x2 13909 | -6/Factory | Self-destructed Last Messages --------------- Loading 4 Factory zones... 13754_ ALERT: All DSF locations entering lockdown mode. 13762_ Drone released from Drone Bay. 13769_ K-01 Serf collects debris. 13824_ Drone retrieved by Drone Bay. 13838_ Connecting with Scanalyzer... 13838_ Current location identified: Factory 13859_ Acquired Hpw. Shotgun. 13869_ Acquired Arm. Leg. 13880_ Critical hit (Burn: +37). 13888_ Mak. Flight Unit destroyed. 13893_ Hrd. Medium Armor Plating destroyed. 13895_ Critical hit (Burn: +37). 13896_ L-41 Fighter knocked back. 13902_ Drone Bay destroyed. 13902_ Critical hit (Burn: +37). 13904_ Adv. Assault Cannon destroyed. 13907_ L-41 Fighter destroyed. 13908_ Hpw. Shotgun destroyed. Map ----- +----------------------------------------------------+ | | | | | | | | | | | | | | | | | | | | | | | | | | | | | | | ???????????????????########??????????????????????? | | ???????????????????# #??????????????????????? | | ???????????????????#"" #??????????????????????? | | ???????????????????#"" #??????????????????????? | | ???????????????????#""" #####??????????????????? | | ???????????????????#""" # ??????????????????? | | ???????????????????#""" # """""????????????????? | | ???????????????????# # """"""???????????????? | | ??#######+###########+#+### """""" ???????????? | | ?? # """""" ############ | | ?? g @# # | | ???""" """ g % """"""????# """" """" | | ?? """ """ g %# """"""????# """" """" | | "" """ """ #% """"" ???# """" """" | | ###+########### """""" # """" """" | | "" # ## # """" """" | | "" "" # !! ## # """" """" | | "" "F"" # ! ## # """" """" | | """" # ############## | | # #????????????# | | # #????????????# | | ####### # #????????????# | | ??????# #########/####????????????#+##+##+#### | | ??????# ## # #???###?##??????# # | | ??????# ## # #???# #?????# # | | ??????# ## ! # #???# " " #?????# # | | ??????# ## # #???# " " #######+## # | | ??????# ## """" # #???# " " # # # | | ??????# ## """" # #???# " " # """# ### | | ??????# ## """" # ##### " " # """# # | | ??????# ## """" # # " " # """# # | | ??????# ## """" # # " " # + + " | | ??????# ## """" + # " " # """# # " | | ??????+ ## # + " " # """# # " | | ??????#^ ## # # # """# # " | +----------------------------------------------------+ Best States ------------- Heat Dissipation 48 Energy Generation 19 Energy Capacity 315 Matter Stores 300 Matter Capacity 300 Sight Range 16 Robot Scan Range 15 Terrain Scan Density 210 ECM Strength 2 Armor Coverage 450 Resistance: KI 30 Weapon Cycling 15 Evasion (%) 63 Recoil Reduction 3 Energy Filtering 30 Kinecelleration 30 Offensive Hacking 11 Item Schematics ----------------- Adv. Treads | -8/Storage | Hacked Prc. Assault Rifle | -8/Storage | Hacked Assault Cannon | -8/Storage | Hacked Med. Treads | -7/Factory | Hacked Robot Schematics ------------------ None Fabricated ------------ Nothing Alien Tech Used ----------------- None Achievements -------------- Backstab The More The Merrier Unlikely Earthworm Use The Force Challenges ------------ None Game ------ Seed ThrowingGodLog Manual? 0 Play Time 02:15:46 Cumulative 19.0 hours Start 2024.04.05 @ 19:28:53 End 2024.04.07 @ 09:23:02 Sessions 4 Manual Loads 0 Difficulty Rogue Special Mode None Game No. 13 Rogue 13 Adventurer 0 Explorer 0 Win Type - Total 0 Types 0/0/0/0/0/0/0/0/0 Lore% 22 Gallery% 22 Achievement% 21 Wizard Run 0 Options --------- Layout 1 ASCII 0 Keyboard 1 Movement Vi Keybinds 0 Fullscreen 1 Font 24/Smallcaps Map View 50x35 Zoom Use 0% Tactical HUD 1 Map Filters NONE Filters NONE Steam 1 RUN: e230f084-2b6c-423d-9a04-31feef400e00